fUST/lending_fUST_20250327
["ID","MTS","AMOUNT","RATE_DAILY","PERIOD"]
[356730779,1743055832619,-865.03013265,0.00019324,2]
[356730786,1743055832640,-133.95405244,0.00019324,2]
[356730789,1743055832649,-998.98418509,0.00019324,2]
[356730792,1743055832659,-998.98418509,0.00019324,2]
[356730795,1743055832668,-998.98418509,0.00019324,2]
[356730798,1743055832677,-998.98418509,0.00019324,2]
[356730801,1743055832686,-998.98418509,0.00019324,2]
[356730804,1743055832695,-998.98418509,0.00019324,2]
[356730807,1743055832705,-998.98418509,0.00019324,2]
[356730810,1743055832714,-998.98418509,0.00019324,2]
[356730812,1743055832724,-998.98418509,0.00019324,2]
[356730813,1743055832733,-998.98418509,0.00019324,2]
[356730815,1743055832742,-998.98418509,0.00019324,2]
[356730818,1743055832751,-998.98418509,0.00019324,2]
[356730820,1743055832761,-998.98418509,0.00019324,2]
[356730822,1743055832770,-998.98418509,0.00019324,2]
[356730824,1743055832779,-998.98418509,0.00019324,2]
[356730826,1743055832789,-998.98418509,0.00019324,2]
[356730828,1743055832799,-998.98418509,0.00019324,2]
[356730829,1743055832809,-998.98418509,0.00019324,2]
[356730831,1743055832819,-998.98418509,0.00019324,2]
[356730833,1743055832828,-998.98418509,0.00019324,2]
[356730835,1743055832837,-998.98418509,0.00019324,2]
[356730837,1743055832847,-998.98418509,0.00019324,2]
[356730839,1743055832856,-998.98418509,0.00019324,2]
[356730841,1743055832865,-979.68876308,0.00019324,2]
[356730894,1743055837970,-19.29542201,0.00019324,2]
[356730895,1743055837980,-998.98418509,0.00019324,2]
[356730896,1743055837990,-998.98418509,0.00019324,2]
[356730897,1743055837999,-998.98418509,0.00019324,2]
[356730898,1743055838009,-59.69237159,0.00019324,2]
[356730899,1743055838021,-939.2918135,0.00019324,2]
[356730900,1743055838030,-998.98418509,0.00019324,2]
[356730901,1743055838040,-998.98418509,0.00019324,2]
[356730902,1743055838049,-998.98418509,0.00019324,2]
[356730903,1743055838059,-998.98418509,0.00019324,2]
[356730904,1743055838068,-998.98418509,0.00019324,2]
[356730905,1743055838078,-998.98418509,0.00019324,2]
[356730906,1743055838087,-998.98418509,0.00019324,2]
[356730907,1743055838096,-993.7263736,0.00019324,2]
[356730908,1743055838105,-993.7263736,0.00019324,2]
[356730909,1743055838115,-993.7263736,0.00019324,2]
[356730910,1743055838124,-993.7263736,0.00019324,2]
[356730911,1743055838133,-993.7263736,0.00019324,2]
[356730912,1743055838142,-993.7263736,0.00019324,2]
[356730913,1743055838151,-993.7263736,0.00019324,2]
[356730914,1743055838160,-993.7263736,0.00019324,2]
[356730915,1743055838169,-993.7263736,0.00019324,2]
[356730916,1743055838178,-993.7263736,0.00019324,2]
[356730917,1743055838186,-993.7263736,0.00019324,2]
[356730918,1743055838195,-993.7263736,0.00019324,2]
[356730919,1743055838204,-993.7263736,0.00019324,2]
[356730920,1743055838213,-993.7263736,0.00019324,2]
[356730921,1743055838223,-993.7263736,0.00019324,2]
[356730922,1743055838232,-993.7263736,0.00019324,2]
[356730923,1743055838242,-993.7263736,0.00019324,2]
[356730924,1743055838252,-993.7263736,0.00019324,2]
[356730925,1743055838261,-993.7263736,0.00019324,2]
[356730926,1743055838270,-500.0,0.00019373,2]
[356730927,1743055838279,-500.0,0.00019373,2]
[356730928,1743055838288,-500.0,0.00019373,2]
[356730929,1743055838298,-500.0,0.00019373,2]
[356730930,1743055838306,-500.0,0.00019373,2]
[356730931,1743055838315,-500.0,0.00019373,2]
[356730932,1743055838324,-500.0,0.000194,2]
[356730933,1743055838333,-500.0,0.000194,2]
[356730934,1743055838343,-500.0,0.000194,2]
[356730935,1743055838352,-500.0,0.000194,2]
[356730936,1743055838363,-499.04438425,0.00019447,2]
[356730937,1743055838372,-500.0,0.00019447,2]
[356730938,1743055838381,-1135.07375113,0.000199,2]
[356730939,1743055838390,-2000.0,0.0002,2]
[356730940,1743055838399,-418.47884548,0.00020395,2]
[356730941,1743055838408,-160.0,0.00020395,2]
[356730942,1743055838417,-5666.07018026,0.00020395,2]
[356730943,1743055838429,-350.4527043,0.00020395,2]
[356730944,1743055838444,-6442.4153169,0.00020395,2]
[356730945,1743055838453,-834.95724862,0.00020395,2]
[356730946,1743055838462,-160.0,0.00020402,2]
[356730947,1743055838474,-1135.0737511,0.0002059,2]
[356730948,1743055838483,-2931.926977,0.00021,2]
[356730949,1743055838492,-1135.0737511,0.00021279,3]
[356730950,1743055838502,-1135.0737511,0.00021969,3]
[356730951,1743055838511,-787.13693144,0.00022179,2]
[356730952,1743055838520,-1135.0737511,0.00022659,4]
[356730953,1743055838529,-500.0,0.00022829,2]
[356730954,1743055838538,-229.632,0.00022988,2]
[356730955,1743055838548,-500.0,0.00023326,2]
[356730956,1743055838558,-1135.0737511,0.00023348,4]
[356730957,1743055838568,-315.0,0.00023384,2]
[356730958,1743055838578,-500.0,0.00023547,2]
[356730959,1743055838587,-320.0,0.0002389,2]
[356730960,1743055838597,-500.0,0.0002399,2]
[356730961,1743055838607,-9101.99971779,0.00024,2]
[356730962,1743055838616,-164.30617594,0.00024,6]
[356730963,1743055838626,-156.0,0.00024,2]
[356730964,1743055838636,-1135.0737511,0.00024038,5]
[356730965,1743055838647,-500.0,0.00024094,2]
[356730966,1743055838658,-2114.6023667,0.00024152,2]
[356730967,1743055838668,-500.0,0.00024242,2]
[356730968,1743055838678,-250.0,0.00024286,2]
[356730969,1743055838687,-153.113,0.00024286,2]
[356730970,1743055838697,-295.974,0.00024286,2]
[356730971,1743055838707,-155.765,0.00024286,2]
[356730972,1743055838717,-196.304,0.00024286,2]
[356730973,1743055838726,-151.452,0.00024286,2]
[356730974,1743055838736,-227.168,0.00024286,2]
[356730975,1743055838746,-280.716,0.00024286,2]
[356730976,1743055838755,-541.0,0.00024286,2]
[356730977,1743055838765,-152.066,0.00024286,2]
[356730978,1743055838774,-1914.0,0.00024286,2]
[356730979,1743055838784,-2263.0,0.00024286,2]
[356730980,1743055838795,-803.68831819,0.00024639,2]
[356730981,1743055838805,-1370.14410867,0.000247,2]
[356730982,1743055838814,-800.0,0.00024705,2]
[356730983,1743055838824,-1135.0737511,0.00024728,5]
[356730984,1743055838834,-500.0,0.00024773,2]
[356730985,1743055838843,-500.0,0.00024773,2]
[356730986,1743055838852,-500.0,0.00024773,2]
[356730987,1743055838862,-500.0,0.00024773,2]
[356730988,1743055838872,-800.0,0.00024781,2]
[356730989,1743055838881,-110098.44647064,0.000248,2]
[356730990,1743055839094,-101044.52998349,0.000248,2]
[356730991,1743055839106,-7484.7317765,0.000248,2]
[356730992,1743055839120,-9822.91230096,0.000248,2]
[356730993,1743055839134,-3878.78992834,0.000248,2]
[356731054,1743055840409,-4806.65434554,0.000248,2]
[356731244,1743056829102,-193.365906,0.00010959,2]
[356731245,1743056829123,-169.33,0.00013699,2]
[356731246,1743056829144,-169.33,0.00013699,2]
[356731247,1743056829165,-169.33,0.00013699,2]
[356731248,1743056829186,-169.33,0.00013699,2]
[356731249,1743056829207,-169.33,0.00013699,2]
[356731250,1743056829228,-169.35843556,0.00013699,2]
[356731251,1743056829248,-1224.46577996,0.00019124,2]
[356731252,1743056829270,-300.0,0.00019223,2]
[356731253,1743056829290,-1189.27805,0.00019224,2]
[356731254,1743056840103,-1118.74500541,0.00019224,2]
[356731255,1743056841091,-472.75714951,0.00019224,2]
[356731256,1743056848135,-242.19220375,0.00019224,2]
[356731302,1743057032443,-192.2979704,0.00018928,2]
[356731304,1743057032454,-892.44854442,0.00019224,2]
[356731310,1743057032523,-1084.57904691,0.00019224,2]
[356731311,1743057032533,-514.43800234,0.00019537,2]
[356731312,1743057032542,-500.0,0.00019537,2]
[356731313,1743057032552,-300.0,0.0001955,2]
[356731314,1743057032562,-10816.22270644,0.00019551,2]
[356731315,1743057032574,-1273.32038068,0.00019551,2]
[356731323,1743057038217,-2282.53026762,0.00019551,2]
[356731325,1743057038230,-692.27064876,0.00019551,2]
[356731327,1743057038239,-1348.8889667,0.00019707,2]
[356731329,1743057038249,-500.0,0.000202,2]
[356731331,1743057038259,-155.98347517,0.00020271,2]
[356731349,1743057040913,-344.01652483,0.00020271,2]
[356731350,1743057040922,-500.0,0.00020271,2]
[356731351,1743057040932,-500.0,0.00020271,2]
[356731352,1743057040942,-495.06194734,0.00020271,2]
[356731353,1743057040952,-500.0,0.00020274,2]
[356731354,1743057040962,-500.0,0.00020274,2]
[356731355,1743057040971,-500.0,0.00020274,2]
[356731356,1743057040980,-500.0,0.00020274,2]
[356731357,1743057040989,-394.76061746,0.00020274,2]
[356731358,1743057040998,-500.0,0.00020274,2]
[356731359,1743057041007,-500.0,0.00020274,2]
[356731360,1743057041017,-500.0,0.00020274,2]
[356731361,1743057041026,-500.0,0.00020274,2]
[356731362,1743057041035,-500.0,0.00020274,2]
[356731363,1743057041045,-500.0,0.00020274,2]
[356731364,1743057041054,-500.0,0.00020274,2]
[356731365,1743057041063,-500.0,0.00020274,2]
[356731366,1743057041073,-500.0,0.00020274,2]
[356731367,1743057041083,-500.0,0.00020274,2]
[356731368,1743057041093,-531.68047596,0.00020274,2]
[356731369,1743057041104,-500.0,0.00020274,2]
[356731370,1743057041113,-500.0,0.00020274,2]
[356731371,1743057041124,-500.0,0.00020274,2]
[356731372,1743057041134,-500.0,0.00020274,2]
[356731373,1743057041145,-500.0,0.00020274,2]
[356731374,1743057041156,-500.0,0.00020274,2]
[356731375,1743057041167,-500.0,0.00020275,2]
[356731376,1743057041178,-500.0,0.00020275,2]
[356731377,1743057041189,-500.0,0.00020275,2]
[356731378,1743057041198,-500.0,0.00020275,2]
[356731379,1743057041208,-500.0,0.00020275,2]
[356731380,1743057041218,-500.0,0.000205,2]
[356731381,1743057041227,-361.6692372,0.000205,2]
[356731382,1743057041237,-500.0,0.000205,2]
[356731383,1743057041246,-500.0,0.000205,2]
[356731384,1743057041256,-160.0,0.00020591,2]
[356731385,1743057041266,-3803.28792629,0.00020591,2]
[356731386,1743057041278,-4549.91186261,0.00020591,2]
[356731387,1743057041289,-4105.73841256,0.00020591,2]
[356731388,1743057041299,-834.95724862,0.00020591,2]
[356731389,1743057041308,-418.47884548,0.00020591,2]
[356731390,1743057041318,-160.0,0.000206,2]
[356731391,1743057041327,-911.52054731,0.000209,3]
[356731392,1743057041336,-911.52054723,0.00021555,3]
[356731393,1743057041347,-162.0,0.00022,2]
[356731394,1743057041356,-911.52054723,0.0002221,3]
[356731395,1743057041365,-218.92685,0.00022389,2]
[356731396,1743057041375,-183.706,0.000228,2]
[356731397,1743057041384,-911.52054723,0.00022866,4]
[356731398,1743057041393,-162.0,0.00023014,2]
[356731399,1743057041403,-500.0,0.00023132,2]
[356731400,1743057041412,-911.52054723,0.00023521,4]
[356731401,1743057041421,-500.0,0.00023712,2]
[356731402,1743057041430,-4674.5456663,0.0002399,2]
[356731403,1743057041440,-1202.32931935,0.00024,30]
[356731404,1743057041450,-556.89932308,0.00024057,2]
[356731405,1743057041460,-500.0,0.00024058,2]
[356731406,1743057041470,-150.0,0.00024104,2]
[356731407,1743057041479,-541.0,0.00024104,2]
[356731408,1743057041489,-2263.0,0.00024104,2]
[356731409,1743057041498,-1914.0,0.00024104,2]
[356731410,1743057041508,-400.0,0.00024104,2]
[356731411,1743057041519,-1585.951775,0.00024152,2]
[356731412,1743057041529,-911.52054723,0.00024176,5]
[356731413,1743057041539,-150.0,0.00024533,2]
[356731414,1743057041549,-301.35086568,0.00024545,2]
[356731415,1743057041559,-165.87905992,0.00024618,2]
[356731416,1743057041568,-800.0,0.00024624,2]
[356731417,1743057041578,-201866.71116311,0.000247,2]
[356731434,1743058046123,-193.365906,0.00010959,2]
[356731435,1743058046146,-160.0,0.00023077,2]
[356731436,1743058046167,-300.0,0.00023081,2]
[356731437,1743058046189,-5114.83803831,0.00023082,2]
[356731438,1743058051097,-238.4373174,0.00023136,2]
[356731439,1743058051118,-250.137054,0.00023382,2]
[356731440,1743058051139,-500.0,0.00023847,2]
[356731441,1743058051160,-136.05037345,0.00023932,2]
[356731442,1743058053140,-698.90687517,0.00023932,2]
[356731443,1743058053164,-418.47884548,0.00023932,2]
[356731444,1743058053189,-159.67,0.00023999,2]
[356731445,1743058053211,-650.32254062,0.00023999,2]
[356731446,1743058053239,-210.5289575,0.00023999,2]
[356731447,1743058053267,-242.70154045,0.00023999,2]
[356731487,1743058232581,-278.80680054,0.00023992,2]
[356731490,1743058232609,-2844.12393828,0.00023992,2]
[356731492,1743058232619,-834.95724862,0.00023992,2]
[356731493,1743058232628,-418.47884548,0.00023992,2]
[356731494,1743058232638,-300.0,0.00023997,2]
[356731495,1743058232647,-160.0,0.00023998,2]
[356731496,1743058232657,-257.29845955,0.00023999,2]
[356731497,1743058232666,-500.0,0.00023999,2]
[356731498,1743058232675,-403.1680476,0.00023999,2]
[356731499,1743058232685,-155.22577843,0.00023999,2]
[356731500,1743058232695,-500.0,0.00023999,2]
[356731501,1743058232705,-500.0,0.00023999,2]
[356731502,1743058232715,-500.0,0.00023999,2]
[356731503,1743058232724,-500.0,0.00023999,2]
[356731504,1743058232734,-500.0,0.00023999,2]
[356731505,1743058232743,-500.0,0.00023999,2]
[356731506,1743058232753,-243.81763934,0.00023999,2]
[356731507,1743058232762,-500.0,0.00023999,2]
[356731508,1743058232771,-500.0,0.00023999,2]
[356731509,1743058232780,-500.0,0.00023999,2]
[356731510,1743058232790,-501.97707739,0.00023999,2]
[356731511,1743058232799,-299.80639039,0.00023999,2]
[356731512,1743058232808,-55622.16793075,0.00024,2]
[356731521,1743058238401,-11072.83206925,0.00024,2]
[356731522,1743058238411,-150.0,0.00024019,2]
[356731523,1743058238420,-541.0,0.00024019,2]
[356731524,1743058238429,-1914.0,0.00024019,2]
[356731525,1743058238439,-2263.0,0.00024019,2]
[356731526,1743058238448,-1189.4638313,0.00024152,2]
[356731527,1743058238458,-165.87905992,0.00024435,2]
[356731528,1743058238467,-1370.14410866,0.00024535,2]
[356731529,1743058238477,-500.0,0.00024573,2]
[356731530,1743058238486,-506.06937843,0.00024573,2]
[356731531,1743058238496,-502.73154948,0.00024573,2]
[356731533,1743058238505,-367.05771871,0.00024573,2]
[356731534,1743058238514,-500.0,0.00024573,2]
[356731535,1743058238524,-500.0,0.00024573,2]
[356731536,1743058238533,-504.1728092,0.00024573,2]
[356731537,1743058238542,-500.0,0.00024573,2]
[356731538,1743058238551,-500.0,0.00024573,2]
[356731539,1743058238560,-500.0,0.00024573,2]
[356731540,1743058238569,-500.0,0.00024573,2]
[356731541,1743058238579,-502.2074248,0.00024573,2]
[356731542,1743058238588,-500.0,0.00024573,2]
[356731543,1743058238598,-304.3368009,0.000246,2]
[356731544,1743058238607,-762.08187165,0.000246,2]
[356731545,1743058238617,-5000.0,0.000246,2]
[356731546,1743058238627,-11016.526338,0.000246,2]
[356731547,1743058238640,-17189.34901759,0.000246,2]
[356731548,1743058238659,-631.72698281,0.000246,2]
[356731560,1743058240678,-714.78080813,0.000246,2]
[356731561,1743058240779,-2691.3145,0.000246,2]
[356731562,1743058240791,-330.154,0.000246,2]
[356731577,1743058246740,-150.0,0.00024019,2]
[356731578,1743058246749,-302.07000005,0.000246,2]
[356731580,1743058701806,500.0,0.00025,120]
[356731581,1743059225150,-183.7645926,0.00010959,2]
[356731582,1743059225172,-163.56932785,0.00020937,5]
[356731583,1743059225194,-300.0,0.00020999,2]
[356731584,1743059225214,-150.0,0.00021,2]
[356731585,1743059225236,-31.77418151,0.00021,2]
[356731586,1743059231094,-327.24210142,0.00021,2]
[356731587,1743059231115,-9036.0,0.00021,2]
[356731588,1743059231138,-689.0,0.00021,2]
[356731589,1743059231159,-163.56932786,0.00021582,5]
[356731590,1743059231183,-717.2329347,0.000219,3]
[356731610,1743059432864,-682.03105792,0.00022316,2]
[356731611,1743059432969,-2122.89697659,0.00022316,2]
[356731689,1743060438150,-187.9485561,0.00010959,2]
[356731690,1743060438174,-169.33,0.00013699,2]
[356731691,1743060438196,-115.47859341,0.00013699,2]
[356731692,1743060439113,-53.85140659,0.00013699,2]
[356731693,1743060439136,-169.33,0.00013699,2]
[356731694,1743060439159,-169.33,0.00013699,2]
[356731695,1743060439180,-169.33,0.00013699,2]
[356731696,1743060439203,-169.35843556,0.00013699,2]
[356731697,1743060439225,-388.1331372,0.000137,2]
[356731698,1743060444087,-111.8668628,0.000137,2]
[356731699,1743060444111,-500.0,0.000137,2]
[356731700,1743060444134,-500.0,0.000137,2]
[356731701,1743060444156,-503.66860046,0.000137,2]
[356731702,1743060444178,-163.56932786,0.00019108,2]
[356731703,1743060444200,-300.0,0.00019178,2]
[356731704,1743060444223,-1000.0,0.00019179,2]
[356731705,1743060444245,-1000.0,0.00019179,2]
[356731706,1743060444266,-545.00599965,0.00019179,2]
[356731707,1743060454116,-454.99400035,0.00019179,2]
[356731708,1743060454144,-15.04523968,0.00020888,2]
[356731716,1743060548631,300.0,0.00025,120]
[356731771,1743060632006,-151.0,0.00020877,2]
[356731772,1743060632017,-152.16840045,0.00020889,2]
[356731773,1743060632027,-24747.3336438,0.00020889,2]
[356731774,1743060632037,-9392.8666611,0.00020965,2]
[356731775,1743060632047,-151.0,0.00021425,2]
[356731776,1743060632057,-968.7658377,0.00021455,2]
[356731777,1743060632067,-265.742155,0.00021826,2]
[356731778,1743060632077,-355.16732615,0.00021887,2]
[356731779,1743060632087,-5000.0,0.000219,2]
[356731780,1743060632097,-4151.4470285,0.000219,2]
[356731781,1743060632107,-315.294048,0.000219,2]
[356731793,1743060637926,-381.04093583,0.00020889,2]
[356731794,1743060637937,-545.016125,0.00020964,2]
[356731795,1743060637947,-417.22569543,0.00020964,2]
[356731796,1743060637956,-184.705952,0.000219,2]
[356731797,1743060637966,-500.0,0.000219,2]
[356731798,1743060637976,-705.30867341,0.000219,3]
[356731799,1743060637986,-500.0,0.000219,2]
[356731800,1743060637995,-500.0,0.000219,2]
[356731801,1743060638006,-500.0,0.000219,2]
[356731802,1743060638016,-151.0,0.00021973,2]
[356731803,1743060638025,-214.74456732,0.00021999,2]
[356731804,1743060638035,-208.77649035,0.00021999,2]
[356731805,1743060638044,-618.52251817,0.00021999,2]
[356731806,1743060638054,-1573.65904249,0.00022,2]
[356731825,1743060640268,-18426.34095751,0.00022,2]
[356731826,1743060640279,-4037.07389895,0.0002207,2]
[356731827,1743060640289,-705.30867329,0.00022521,4]
[356731828,1743060640300,-151.0,0.00022521,2]
[356731829,1743060640310,-500.0,0.00022648,2]
[356731830,1743060640321,-500.0,0.0002276,2]
[356731831,1743060640331,-183.706,0.00023,2]
[356731832,1743060640341,-151.0,0.00023069,2]
[356731833,1743060640352,-705.30867329,0.00023141,4]
[356731834,1743060640362,-50000.0,0.000232,4]
[356731835,1743060640372,-186.3650319,0.00023204,2]
[356731836,1743060640382,-714.7903764,0.00023304,2]
[356731837,1743060640392,-500.0,0.00023433,2]
[356731838,1743060640402,-500.0,0.00023433,2]
[356731839,1743060640412,-332.05161604,0.00023456,2]
[356731840,1743060640422,-186.36503186,0.00023503,2]
[356731841,1743060640432,-151.0,0.00023617,2]
[356731842,1743060640442,-150.0,0.00023707,2]
[356731843,1743060640452,-541.0,0.00023707,2]
[356731844,1743060640462,-2263.0,0.00023707,2]
[356731845,1743060640473,-1914.0,0.00023707,2]
[356731846,1743060640482,-400.0,0.00023707,2]
[356731847,1743060640493,-834.95724862,0.00023708,2]
[356731848,1743060640503,-418.47884548,0.00023708,2]
[356731849,1743060640513,-705.30867329,0.00023762,4]
[356731850,1743060640523,-186.36503186,0.00023802,2]
[356731851,1743060640532,-150.0,0.00024019,2]
[356731852,1743060640542,-150.0,0.00024019,2]
[356731853,1743060640553,-150.0,0.00024019,2]
[356731854,1743060640562,-968.76583769,0.0002409,2]
[356731855,1743060640573,-186.36503186,0.00024101,2]
[356731856,1743060640583,-4018.61270096,0.00024123,2]
[356731857,1743060640594,-892.0978735,0.00024152,2]
[356731858,1743060640604,-151.0,0.00024165,2]
[356731859,1743060640614,-82224.0628,0.000242,3]
[356731860,1743060640625,-160.0,0.000242,3]
[356731861,1743060640635,-418.47884548,0.000242,3]
[356731862,1743060640645,-175.197885,0.000242,7]
[356731863,1743060640655,-245.661534,0.000242,7]
[356731864,1743060640665,-164.784622,0.000242,7]
[356731865,1743060640675,-164.784622,0.000242,7]
[356731866,1743060640685,-834.95724862,0.000242,3]
[356731867,1743060640695,-160.0,0.0002436,2]
[356731868,1743060640705,-705.30867329,0.00024383,5]
[356731869,1743060640715,-186.36503186,0.000244,2]
[356731870,1743060640727,-1728.85900244,0.000244,2]
[356731871,1743060640738,-500.0,0.00024473,2]
[356731872,1743060640748,-499.26492676,0.00024473,2]
[356731873,1743060640758,-500.0,0.00024473,2]
[356731874,1743060640768,-151.0,0.000245,7]
[356731875,1743060640777,-209.059291,0.000245,7]
[356731876,1743060640787,-153.476578,0.000245,7]
[356731877,1743060640798,-151.0,0.000245,7]
[356731878,1743060640807,-151.0,0.000245,7]
[356731879,1743060640817,-151.0,0.000245,7]
[356731880,1743060640828,-151.617942,0.000245,7]
[356731881,1743060640839,-151.0,0.000245,5]
[356731882,1743060640849,-164.784622,0.000245,7]
[356731883,1743060640859,-164.784622,0.000245,7]
[356731884,1743060640871,-800.0,0.00024569,2]
[356731885,1743060640882,-151.0,0.000246,7]
[356731886,1743060640891,-800.0,0.00024629,2]
[356731887,1743060640902,-151.0,0.00024699,2]
[356731888,1743060640911,-151.0,0.00024713,2]
[356731889,1743060640921,-1095.377131,0.0002478,5]
[356731890,1743060640931,-1001.80961114,0.000248,2]
[356731891,1743060640940,-1000.0,0.000248,5]
[356731892,1743060640950,-150.0,0.000248,30]
[356731893,1743060640961,-151.0,0.000248,10]
[356731894,1743060640970,-500.0,0.00024873,2]
[356731895,1743060640980,-501.85064586,0.00024873,2]
[356731896,1743060640990,-500.0,0.00024873,2]
[356731897,1743060641001,-500.0,0.00024873,2]
[356731898,1743060641010,-500.0,0.00024873,2]
[356731899,1743060641020,-500.0,0.00024873,2]
[356731900,1743060641030,-500.0,0.00024873,2]
[356731901,1743060641040,-500.0,0.00024873,2]
[356731902,1743060641050,-500.0,0.00024873,2]
[356731903,1743060641060,-500.0,0.00024873,2]
[356731904,1743060641070,-503.8365944,0.00024873,2]
[356731905,1743060641080,-500.0,0.00024873,2]
[356731906,1743060641090,-500.0,0.00024873,2]
[356731907,1743060641100,-500.75895545,0.00024873,2]
[356731908,1743060641110,-174.00873451,0.00024873,2]
[356731909,1743060641120,-151.0,0.000249,7]
[356731910,1743060641131,-209.677159,0.000249,7]
[356731911,1743060641142,-6428.40021739,0.000249,2]
[356731926,1743061647134,-226.755125,0.00010959,2]
[356731927,1743061647156,-226.755125,0.00013699,2]
[356731928,1743061647177,-226.755125,0.00016438,2]
[356731929,1743061647198,-197.3530179,0.00018918,2]
[356731930,1743061647221,-182.824014,0.00019123,2]
[356731931,1743061647242,-226.755125,0.00019178,2]
[356731932,1743061647264,-182.824014,0.00019378,2]
[356731933,1743061647286,-300.0,0.00019567,2]
[356731934,1743061647309,-3883.77308306,0.00019568,2]
[356731972,1743061837980,-2265.61131233,0.00019568,2]
[356731974,1743061837993,-783.42743174,0.00019568,2]
[356731979,1743061838025,-408.68497547,0.00019568,2]
[356731981,1743061838036,-416.351307,0.00019568,2]
[356731984,1743061838059,-500.0,0.00019568,2]
[356731986,1743061838071,-683.4702858,0.00019568,2]
[356732065,1743061846293,-1058.6816046,0.00019568,2]
[356732066,1743061846303,-886.8867818,0.00019621,2]
[356732067,1743061846313,-182.824014,0.00019633,2]
[356732068,1743061846323,-250.0,0.00019655,2]
[356732069,1743061846332,-182.824014,0.00019888,2]
[356732070,1743061846342,-429.57,0.0002,2]
[356732071,1743061846351,-1779.84506376,0.00020689,2]
[356732072,1743061846360,-153.08170836,0.00020689,2]
[356732073,1743061846370,-300.0,0.00020752,2]
[356732074,1743061846380,-2931.5180911,0.00020753,2]
[356732075,1743061846390,-151.0,0.00020777,2]
[356732076,1743061846399,-495.05685491,0.00020787,2]
[356732077,1743061846408,-242.70154045,0.00020787,2]
[356732078,1743061846418,-225.91079889,0.00020787,2]
[356732079,1743061846427,-500.0,0.00020787,2]
[356732080,1743061846437,-500.0,0.00020787,2]
[356732081,1743061846446,-500.0,0.00020787,2]
[356732082,1743061846456,-500.0,0.00020787,2]
[356732083,1743061846466,-500.0,0.00020787,2]
[356732084,1743061846475,-500.0,0.00020787,2]
[356732085,1743061846484,-500.0,0.00020787,2]
[356732086,1743061846494,-500.0,0.00020787,2]
[356732087,1743061846503,-500.0,0.00020787,2]
[356732088,1743061846513,-500.0,0.00020787,2]
[356732089,1743061846522,-500.0,0.00020787,2]
[356732090,1743061846533,-500.0,0.00020787,2]
[356732091,1743061846543,-500.0,0.00020787,2]
[356732092,1743061846553,-643.19490896,0.00020787,2]
[356732093,1743061846563,-500.0,0.00020787,2]
[356732094,1743061846572,-500.0,0.00020787,2]
[356732095,1743061846583,-500.0,0.00020787,2]
[356732096,1743061846593,-500.0,0.00020787,2]
[356732097,1743061846604,-500.0,0.00020787,2]
[356732098,1743061846614,-500.0,0.00020787,2]
[356732099,1743061846623,-500.0,0.00020787,2]
[356732100,1743061846633,-500.0,0.00020787,2]
[356732101,1743061846643,-500.0,0.00020787,2]
[356732102,1743061846654,-500.0,0.00020787,2]
[356732103,1743061846664,-500.0,0.00020787,2]
[356732104,1743061846674,-500.0,0.00020787,2]
[356732105,1743061846685,-20000.0,0.00020788,2]
[356732106,1743061846696,-2058.2641347,0.00020789,2]
[356732107,1743061846705,-5000.0,0.00020789,2]
[356732108,1743061846715,-159.67,0.00020789,2]
[356732109,1743061846725,-152.0,0.00020846,2]
[356732110,1743061846735,-1300.39395854,0.000209,3]
[356732111,1743061846744,-160.0,0.00021008,2]
[356732112,1743061846754,-834.95724862,0.00021016,2]